Workbook

Sheet RUS Form 36
A1: USDA - RUS | E1: Title of Information Document | K1: OMB No.
E2: Distance Learning and Telemedicine | L2: 0572-0096
A3: SUMMARY OF INFORMATION COLLECTION | E3: Loan and Grant Program, 7 CFR 1703- D, E, F, and G | K3: Date Prepared
K4: 9/20/13 rev
A5: INSTRUCTIONS: | G5: > | H5: (h) TOTAL | J5: (j) TOTAL | L5: (m) TOTAL
A6: Use this form when a single information collection document involves multiple reporting and | G6: > | H6: - | I6: = (e) Average | J6: - | K6: = (g) Average | L6: - | M6: = (j) Average
A7: recordkeeping requirements. | G7: > | H7: (f) TOTAL | J7: (h) TOTAL | L7: (k) TOTAL
A8: IDENTIFICATION OF REPORTING AND RECORDKEEPING REQUIREMENTS | I8: ANNUAL BURDEN
E9: FORM | H9: REPORTS | L9: RECORDS
E10: NO(s) | F10: NO. OF | G10: NO. OF | H10: TOTAL | I10: HOURS | J10: TOTAL | K10: NO. OF | L10: ANNUAL | M10: TOTAL
B11: SECTION OF | E11: (If "none" | F11: RESPON- | G11: RESPONSES | H11: ANNUAL | I11: PER | J11: HOURS | K11: RECORD- | L11: HOURS PER | M11: RECORD-
B12: REGULATIONS | D12: DESCRIPTION | E12: so state) | F12: DENTS | G12: PER | H12: RESPONSES | I12: RESPONSE | J12: (Col. f & g) | K12: KEEPERS | L12: RECORD- | M12: KEEPING
G13: RESPON- | H13: (Col. d & e) | L13: KEEPER | M13: HOURS
B14: (a) | G14: DENT | M14: (Col. i & j)
A15: Grants | B15: Combos | C15: Loans | D15: (b) | E15: (c) | F15: (d) | G15: (e) | H15: (f) | I15: (g) | J15: (h) | K15: (i) | L15: (j) | M15: (k)
D16: Items Cleared Under Other Dockets
A17: 1703.125(a) | B17: 1703.134(a) | C17: 1703.144(a) | D17: Application for Federal Assistance | E17: SF-424 | F17: Approved under OMB Docket No. 4040-0004
A19: 1703.106(b)(1) | B19: 1703.106(b)(1) | C19: 1703.106(b)(1) | D19: Request for Advance or Reimbursement | E19: SF-270 | F19: 100 | G19: 3 | H19: =SUM(F19*G19) -> 300 | I19: 1.00 | J19: =SUM(H19*I19) -> 300.00 | K19: 350 | L19: 1.00 | M19: =SUM(K19*L19) -> 350.00
D20: Approved under OMB Docket No. 0348-0004, but each Agency is required to report their paperwork burden
A22: 1703.108 | B22: 1703.108 | C22: 1703.108 | D22: Audit Report | E22: None | F22: Approved under OMB Docket No. 0572-0095
D24: Items Cleared Under This Docket
D25: Applicant Information
A26: 1703.125(b) | B26: 1703.134(b) | C26: 1703.144(b) | D26: Executive Summary | E26: None | F26: 210 | G26: 1 | H26: =SUM(F26*G26) -> 210 | I26: 2.20 | J26: =SUM(H26*I26) -> 462.00
A28: 1703.125(c) | D28: Scoring Criteria Documentation | E28: None | F28: 210 | G28: 1 | H28: =SUM(F28*G28) -> 210 | I28: 6.60 | J28: =SUM(H28*I28) -> 1,386.00
A30: 1703.125(d) | B30: 1703.134(c) | C30: 1703.144(c) | D30: Proposed Scope of Work | E30: None | F30: 210 | G30: 1 | H30: =SUM(F30*G30) -> 210 | I30: 1.10 | J30: =SUM(H30*I30) -> 231.00
A32: 1703.125(e) | B32: 1703.134(d) | C32: 1703.144(d) | D32: Financial Information | E32: None | F32: 210 | G32: 1 | H32: =SUM(F32*G32) -> 210 | I32: 2.20 | J32: =SUM(H32*I32) -> 462.00
A34: 1703.125(f) | B34: 1703.134(e) | C34: 1703.144(e) | D34: Statement of Experience | E34: None | F34: 210 | G34: 1 | H34: =SUM(F34*G34) -> 210 | I34: 0.55 | J34: =SUM(H34*I34) -> 115.50
A36: 1703.125(g) | D36: Funding Commitment from Other Sources | E36: None | F36: 210 | G36: 1 | H36: =SUM(F36*G36) -> 210 | I36: 0.55 | J36: =SUM(H36*I36) -> 115.50
A38: 1703.125(h) | B38: 1703.134(f) | C38: 1703.144(f) | D38: Telecommunications System Plan | E38: None | F38: 210 | G38: 1 | H38: =SUM(F38*G38) -> 210 | I38: 33.00 | J38: =SUM(H38*I38) -> 6,930.00
A40: 1703.125(i)(1) | B40: 1703.134(g)(1) | C40: 1703.144(g)(1) | D40: Equal Opportunity and Nondiscrimination Requirements | E40: None | F40: 210 | G40: 1 | H40: =SUM(F40*G40) -> 210 | I40: 0.10 | J40: =SUM(H40*I40) -> 21.00
A42: 1703.125(i)(2) | B42: 1703.134(g)(2) | C42: 1703.144(g)(2) | D42: Certification Regarding Architectural Barriers | E42: None | F42: 210 | G42: 1 | H42: =SUM(F42*G42) -> 210 | I42: 0.10 | J42: =SUM(H42*I42) -> 21.00
A44: 1703.125(i)(3) | B44: 1703.134(g)(3) | C44: 1703.144(g)(3) | D44: Certification Regarding Flood Hazard Areas | E44: None | F44: 210 | G44: 1 | H44: =SUM(F44*G44) -> 210 | I44: 0.10 | J44: =SUM(H44*I44) -> 21.00
A46: 1703.125(i)(4) | B46: 1703.134(g)(4) | C46: 1703.144(g)(4) | D46: Certification Regarding Uniform Relocation Assistance, etc. | E46: None | F46: 210 | G46: 1 | H46: =SUM(F46*G46) -> 210 | I46: 0.10 | J46: =SUM(H46*I46) -> 21.00
A48: 1703.125(i)(5) | B48: 1703.134(g)(5) | C48: 1703.144(g)(5) | D48: Certification Regarding Drug-Free Workplace | E48: None | F48: 210 | G48: 1 | H48: =SUM(F48*G48) -> 210 | I48: 0.13 | J48: =SUM(H48*I48) -> 27.30
A50: 1703.125(i)(6) | B50: 1703.134(g)(6) | C50: 1703.144(g)(6) | D50: Certification Regarding Debarment and Suspension | E50: None | F50: 210 | G50: 1 | H50: =SUM(F50*G50) -> 210 | I50: 0.10 | J50: =SUM(H50*I50) -> 21.00
A52: 1703.125(i)(7) | B52: 1703.134(g)(7) | C52: 1703.144(g)(7) | D52: Certification Regarding Lobbying | E52: None | F52: 210 | G52: 1 | H52: =SUM(F52*G52) -> 210 | I52: 0.13 | J52: =SUM(H52*I52) -> 27.30
A54: 1703.125(i)(8) | B54: 1703.134(g)(8) | C54: 1703.144(g)(8) | D54: Non-Duplication of Services | E54: None | F54: 210 | G54: 1 | H54: =SUM(F54*G54) -> 210 | I54: 0.10 | J54: =SUM(H54*I54) -> 21.00
A56: 1703.125(j) | B56: 1703.134(h) | C56: 1703.144(h) | D56: Environmental Information | E56: None | F56: 210 | G56: 1 | H56: =SUM(F56*G56) -> 210 | I56: 1.65 | J56: =SUM(H56*I56) -> 346.50
A58: 1703.125(k) | B58: 1703.134(i) | C58: 1703.144(i) | D58: Evidence of Legal Existence and Authority | E58: None | F58: 210 | G58: 1 | H58: =SUM(F58*G58) -> 210 | I58: 0.25 | J58: =SUM(H58*I58) -> 52.50
A60: 1703.125(l) | B60: 1703.134(j) | C60: 1703.144(j) | D60: Federal Obligations Certification on Delinquent Debt | E60: None | F60: 210 | G60: 1 | H60: =SUM(F60*G60) -> 210 | I60: 0.50 | J60: =SUM(H60*I60) -> 105.00
A62: 1703.125(m) | D62: Consultation w/ State Director RE: Other Funding Sources | E62: None | F62: 210 | G62: 1 | H62: =SUM(F62*G62) -> 210 | I62: 1.65 | J62: =SUM(H62*I62) -> 346.50
A64: 1703.125(n) | D64: Consultation w/ State Director RE: State Strategic Plan | E64: None | F64: 210 | G64: 1 | H64: =SUM(F64*G64) -> 210 | I64: 0.50 | J64: =SUM(H64*I64) -> 105.00
D65: Recipient Information
A66: 1703.105(e) | B66: 1703.105(e) | C66: 1703.105(e) | D66: Updated Information for Preparing Legal Documents | E66: None | F66: 100 | G66: 1 | H66: =SUM(F66*G66) -> 100 | I66: 3.00 | J66: =SUM(H66*I66) -> 300.00 | K66: 100 | L66: 0.50 | M66: =SUM(K66*L66) -> 50.00
A68: 1703.105(e) | B68: 1703.105(e) | C68: 1703.105(e) | D68: Execution of Legal Documents | E68: None | F68: 100 | G68: 1 | H68: =SUM(F68*G68) -> 100 | I68: 1.00 | J68: =SUM(H68*I68) -> 100.00 | K68: 100 | L68: 1.00 | M68: =SUM(K68*L68) -> 100.00
A70: 1703.106(a) | B70: 1703.106(a) | C70: 1703.106(a) | D70: Evidence of Fidelity Bond Coverage | E70: None | F70: 100 | G70: 1 | H70: =SUM(F70*G70) -> 100 | I70: 0.50 | J70: =SUM(H70*I70) -> 50.00 | K70: 100 | L70: 0.50 | M70: =SUM(K70*L70) -> 50.00
A72: 1703.107(a) | B72: 1703.107(a) | C72: 1703.107(a) | D72: Project Performance Report | E72: None | F72: 100 | G72: 1 | H72: =SUM(F72*G72) -> 100 | I72: 4.00 | J72: =SUM(H72*I72) -> 400.00 | K72: 100 | L72: 1.00 | M72: =SUM(K72*L72) -> 100.00
D73: TOTAL | H73: =SUM(H17:H72) -> 4,900 | J73: =SUM(J17:J72) -> 11,988 | M73: =SUM(M17:M72) -> 650
H75: Reporting Burden | J75: =J73 -> 11,988
H76: Recordkeeping Burden | J76: =M73 -> 650
H77: Total Burden Hours | J77: =SUM(J75:J76) -> 12,638
